fUSD/lending_fUSD_20240505
["ID","MTS","AMOUNT","RATE_DAILY","PERIOD"]
[326445271,1714915861323,-4766.51,0.00033424,6]
[326445272,1714915861332,-500.0,0.00033424,6]
[326445273,1714915861341,-1483.93,0.00033424,6]
[326445274,1714915861350,-21188.73,0.00033424,6]
[326445275,1714915861360,-500.0,0.00033424,6]
[326445276,1714915861369,-519.7,0.00033424,6]
[326445277,1714915861378,-1683.27,0.00033424,6]
[326445278,1714915861388,-826.92,0.00033424,6]
[326445279,1714915861397,-592.84,0.00033424,6]
[326445280,1714915861406,-3339.31,0.00033424,6]
[326445281,1714915861415,-500.0,0.00033424,6]
[326445282,1714915861424,-7252.85,0.00033424,6]
[326445283,1714915861433,-924.39,0.00033424,6]
[326445284,1714915861442,-500.0,0.00033424,6]
[326445285,1714915861451,-2520.84,0.00033424,6]
[326445286,1714915861460,-520.75,0.00033424,6]
[326445287,1714915861470,-5430.33,0.00033424,6]
[326445288,1714915861479,-500.0,0.00033424,6]
[326445289,1714915861488,-5345.4,0.00033424,6]
[326445290,1714915861499,-500.0,0.00033424,6]
[326445291,1714915861508,-500.0,0.00033424,6]
[326445292,1714915861517,-1991.68,0.00033424,6]
[326445293,1714915861526,-53920.09,0.00033424,6]
[326445294,1714915861535,-1714.51,0.00033424,6]
[326445295,1714915861544,-500.0,0.00033424,6]
[326445296,1714915861553,-500.0,0.00033424,6]
[326445297,1714915861563,-1844.66,0.00033424,6]
[326445298,1714915861572,-1895.16,0.00033424,6]
[326445299,1714915861581,-4129.35,0.00033424,6]
[326445300,1714915861590,-36117.33,0.00033424,6]
[326445301,1714915861599,-1482.65,0.00033424,6]
[326445302,1714915861608,-1421.18,0.00033424,6]
[326445303,1714915861618,-600.27,0.00033424,6]
[326445304,1714915861627,-4440.77,0.00033424,6]
[326445305,1714915861636,-1005.54,0.00033424,6]
[326445306,1714915861646,-650.32,0.00033424,6]
[326445307,1714915861655,-500.0,0.00033424,6]
[326445308,1714915861664,-1485.76,0.00033424,6]
[326445309,1714915861673,-4096.05,0.00033424,6]
[326445310,1714915861683,-4019.71,0.00033424,6]
[326445311,1714915861691,-998.05,0.00033424,6]
[326445312,1714915861700,-2578.28,0.00033424,6]
[326445313,1714915861709,-5575.77,0.00033424,6]
[326445314,1714915861719,-500.0,0.00033424,6]
[326445315,1714915861728,-8636.31,0.00033424,6]
[326445316,1714915861737,-500.0,0.00033424,6]
[326445317,1714915861748,-500.0,0.00033424,6]
[326445318,1714915861757,-1285.05,0.00033424,6]
[326445319,1714915861766,-3689.45,0.00033424,6]
[326445320,1714915861775,-531.19,0.00033424,6]
[326445321,1714915861785,-3833.57,0.00033424,6]
[326445322,1714915861795,-1586.24,0.00033424,6]
[326445323,1714915861806,-1238.29,0.00033424,6]
[326445324,1714915861816,-706.62,0.00033424,6]
[326445325,1714915861827,-4259.24,0.00033424,6]
[326445326,1714915861836,-500.0,0.00033424,6]
[326445327,1714915861846,-890.07,0.00033424,6]
[326445328,1714915861855,-877.78,0.00033424,6]
[326445329,1714915861866,-5407.43,0.00033424,6]
[326445330,1714915861875,-12601.05,0.00033424,6]
[326445331,1714915861885,-1819.72,0.00033424,6]
[326445332,1714915861895,-506.28597762,0.00033424,6]
[326445333,1714915861904,-500.0,0.00033424,6]
[326445334,1714915861913,-500.0,0.00033424,6]
[326445335,1714915861922,-500.0,0.00033424,6]
[326445336,1714915861931,-4446.7,0.00033424,6]
[326445337,1714915861940,-4699.42,0.00033424,6]
[326445338,1714915861950,-1098.5,0.00033424,6]
[326445339,1714915861959,-1426.55,0.00033424,6]
[326445340,1714915861970,-1007.09,0.00033424,6]
[326445341,1714915861979,-3650.32,0.00033424,6]
[326445342,1714915861989,-500.0,0.00033424,6]
[326445343,1714915862000,-500.0,0.00033424,6]
[326445344,1714915862009,-500.0,0.00033424,6]
[326445345,1714915862018,-500.0,0.00033424,6]
[326445346,1714915862028,-500.0,0.00033424,6]
[326445347,1714915862037,-7783.47,0.00033424,6]
[326445348,1714915862047,-653.33,0.00033424,6]
[326445349,1714915862056,-25149.19,0.00033424,6]
[326445350,1714915862065,-500.0,0.00033424,6]
[326445351,1714915862074,-500.0,0.00033424,6]
[326445352,1714915862083,-8319.27,0.00033424,6]
[326445353,1714915862097,-500.0,0.00033424,6]
[326445354,1714915862115,-1150.87,0.00033424,6]
[326445355,1714915862135,-9169.92,0.00033424,6]
[326445356,1714915862154,-2150.34,0.00033424,6]
[326445357,1714915862165,-500.0,0.00033424,6]
[326445358,1714915862173,-3608.41,0.00033424,6]
[326445359,1714915862182,-2287.86,0.00033424,6]
[326445360,1714915862191,-524.33,0.00033424,6]
[326445361,1714915862200,-16094.57,0.00033424,6]
[326445362,1714915862212,-1397.44,0.00033424,6]
[326445363,1714915862221,-2574.82,0.00033424,6]
[326445364,1714915862232,-4666.27,0.00033424,6]
[326445365,1714915862251,-800.06,0.00033424,6]
[326445366,1714915862266,-5867.67,0.00033424,6]
[326445367,1714915862280,-1011.87,0.00033424,6]
[326445368,1714915862294,-500.0,0.00033424,6]
[326445369,1714915862309,-2556.72,0.00033424,6]
[326445370,1714915862324,-500.0,0.00033424,6]
[326445371,1714915862340,-1934.18,0.00033424,6]
[326445372,1714915862354,-500.0,0.00033424,6]
[326445373,1714915862367,-1210.64,0.00033424,6]
[326445374,1714915862382,-4890.28,0.00033424,6]
[326445375,1714915862395,-1046.43,0.00033424,6]
[326445376,1714915862406,-4078.34,0.00033424,6]
[326445377,1714915862419,-1050.31,0.00033424,6]
[326445378,1714915862433,-712.61,0.00033424,6]
[326445379,1714915862450,-5322.09,0.00033424,6]
[326445380,1714915862466,-1365.74,0.00033424,6]
[326445381,1714915862478,-500.0,0.00033424,6]
[326445382,1714915862490,-500.0,0.00033424,6]
[326445383,1714915862506,-871.21,0.00033424,6]
[326445384,1714915862521,-1199.26,0.00033424,6]
[326445385,1714915862533,-500.0,0.00033424,6]
[326445386,1714915862545,-500.0,0.00033424,6]
[326445387,1714915862561,-4022.81,0.00033424,6]
[326445388,1714915862573,-1499.35,0.00033424,6]
[326445389,1714915862583,-1158.44,0.00033424,6]
[326445390,1714915862597,-1682.57,0.00033424,6]
[326445391,1714915862608,-500.0,0.00033424,6]
[326445392,1714915862621,-500.0,0.00033424,6]
[326445393,1714915862634,-1409.29,0.00033424,6]
[326445394,1714915862646,-2320.99,0.00033424,6]
[326445395,1714915862659,-4262.11,0.00033424,6]
[326445396,1714915862672,-3519.46,0.00033424,6]
[326445397,1714915862684,-1993.89,0.00033424,6]
[326445398,1714915862697,-521.92,0.00033424,6]
[326445399,1714915862710,-831.6,0.00033424,6]
[326445400,1714915862722,-500.0,0.00033424,6]
[326445401,1714915862733,-1079.33,0.00033424,6]
[326445402,1714915862749,-1831.59,0.00033424,6]
[326445403,1714915862761,-8414.0,0.00033424,6]
[326445404,1714915862774,-500.0,0.00033424,6]
[326445405,1714915862786,-5303.85,0.00033424,6]
[326445406,1714915862798,-2427.21,0.00033424,6]
[326445407,1714915862810,-1775.51,0.00033424,6]
[326445408,1714915862822,-5490.49,0.00033424,6]
[326445409,1714915862834,-4588.6,0.00033424,6]
[326445410,1714915862846,-1455.28,0.00033424,6]
[326445411,1714915862859,-1465.44,0.00033424,6]
[326445412,1714915862871,-509.46,0.00033424,6]
[326445413,1714915862884,-15635.43,0.00033424,6]
[326445414,1714915862896,-30934.75,0.00033424,6]
[326445415,1714915862908,-8885.57,0.00033424,6]
[326445416,1714915862920,-6939.18,0.00033424,6]
[326445417,1714915862933,-500.0,0.00033424,6]
[326445418,1714915862946,-24294.82,0.00033424,6]
[326445419,1714915862957,-3388.55,0.00033424,6]
[326445420,1714915862970,-1239.15,0.00033424,6]
[326445421,1714915862983,-1798.71,0.00033424,6]
[326445422,1714915862997,-15111.33,0.00033424,6]
[326445423,1714915863010,-2498.11,0.00033424,6]
[326445424,1714915863022,-2140.6,0.00033424,6]
[326445425,1714915863037,-4894.16,0.00033424,6]
[326445426,1714915863049,-513.67,0.00033424,6]
[326445427,1714915863062,-7195.43,0.00033424,6]
[326445428,1714915863075,-605.45,0.00033424,6]
[326445429,1714915863087,-720.25,0.00033424,6]
[326445430,1714915863099,-3350.4,0.00033424,6]
[326445431,1714915863112,-2007.91,0.00033424,6]
[326445432,1714915863126,-1480.46,0.00033424,6]
[326445433,1714915863140,-4600.17,0.00033424,6]
[326445434,1714915863152,-6247.31,0.00033424,6]
[326445435,1714915863164,-941.38,0.00033424,6]
[326445436,1714915863177,-5529.77,0.00033424,6]
[326445437,1714915863188,-1802.34,0.00033424,6]
[326445438,1714915863208,-3730.21,0.00033424,6]
[326445439,1714915863221,-432.08908443,0.00033424,6]
[326445440,1714915863234,-5522.61,0.00033424,6]
[326445441,1714915863247,-69451.25,0.00033424,6]
[326445442,1714915863260,-17267.81,0.00033424,6]
[326445443,1714915863272,-940.56,0.00033424,6]
[326445444,1714915863286,-2059.23,0.00033424,6]
[326445445,1714915863306,-4875.89,0.00033424,6]
[326445446,1714915863327,-1765.66,0.00033424,6]
[326445447,1714915863348,-500.0,0.00033424,6]
[326445448,1714915863369,-500.0,0.00033424,6]
[326445449,1714915863385,-2386.12,0.00033424,6]
[326445450,1714915863396,-4957.65,0.00033424,6]
[326445451,1714915863408,-3790.19,0.00033424,6]
[326445452,1714915863420,-4018.28,0.00033424,6]
[326445453,1714915863431,-511.80037023,0.00033424,6]
[326445454,1714915863460,-7084.1,0.00033424,6]
[326445455,1714915863479,-3318.52,0.00033424,6]
[326445456,1714915863496,-4177.62,0.00033424,6]
[326445457,1714915863512,-1507.63,0.00033424,6]
[326445458,1714915863528,-500.0,0.00033424,6]
[326445459,1714915863543,-754.04,0.00033424,6]
[326445460,1714915863559,-5879.51,0.00033424,6]
[326445461,1714915863572,-2805.64,0.00033424,6]
[326445462,1714915863588,-3812.68,0.00033424,6]
[326445463,1714915863606,-9642.06,0.00033424,6]
[326445464,1714915863620,-500.0,0.00033424,6]
[326445465,1714915863636,-561.09,0.00033424,6]
[326445466,1714915863651,-500.0,0.00033424,6]
[326445467,1714915863664,-4065.58,0.00033424,6]
[326445468,1714915863678,-1084.59,0.00033424,6]
[326445469,1714915863691,-500.0,0.00033424,6]
[326445470,1714915863705,-4272.51,0.00033424,6]
[326445471,1714915863718,-8551.3,0.00033424,6]
[326445472,1714915863730,-4435.83,0.00033424,6]
[326445473,1714915863743,-6828.25,0.00033424,6]
[326445474,1714915863755,-5333.56,0.00033424,6]
[326445475,1714915863768,-1521.12,0.00033424,6]
[326445476,1714915863780,-3170.47,0.00033424,6]
[326445477,1714915863792,-1351.61,0.00033424,6]
[326445478,1714915863805,-681.05,0.00033424,6]
[326445479,1714915863817,-500.0,0.00033424,6]
[326445480,1714915863830,-8295.7,0.00033424,6]
[326445481,1714915863843,-500.0,0.00033424,6]
[326445482,1714915863855,-2108.87,0.00033424,6]
[326445483,1714915863867,-507.95,0.00033424,6]
[326445484,1714915863879,-4558.37,0.00033424,6]
[326445485,1714915863891,-2389.78,0.00033424,6]
[326445486,1714915863903,-2122.33,0.00033424,6]
[326445487,1714915863915,-13853.01,0.00033424,6]
[326445488,1714915863927,-3331.4,0.00033424,6]
[326445489,1714915863939,-1498.97,0.00033424,6]
[326445490,1714915863951,-1462.76,0.00033424,6]
[326445491,1714915863963,-500.0,0.00033424,6]
[326445492,1714915863975,-500.0,0.00033424,6]
[326445493,1714915863986,-5038.55,0.00033424,6]
[326445494,1714915864000,-500.0,0.00033424,6]
[326445495,1714915864011,-500.0,0.00033424,6]
[326445496,1714915864023,-2135.41,0.00033424,6]
[326445497,1714915864034,-3362.19,0.00033424,6]
[326445498,1714915864046,-1239.44,0.00033424,6]
[326445499,1714915864059,-2835.44,0.00033424,6]
[326445500,1714915864072,-2315.78,0.00033424,6]
[326445501,1714915864084,-10892.57,0.00033424,6]
[326445502,1714915864096,-50713.72,0.00033424,6]
[326445503,1714915864107,-10513.89,0.00033424,6]
[326445504,1714915864119,-500.0,0.00033424,6]
[326445505,1714915864132,-502.84465362,0.00033424,6]
[326445506,1714915864143,-14214.53,0.00033424,6]
[326445507,1714915864156,-500.0,0.00033424,6]
[326445508,1714915864167,-17977.13,0.00033424,6]
[326445509,1714915864179,-690.67,0.00033424,6]
[326445510,1714915864192,-2665.74,0.00033424,6]
[326445511,1714915864207,-500.0,0.00033424,6]
[326445512,1714915864219,-4046.33095144,0.00033424,6]
[326445513,1714915865263,-1241.56589148,0.00031602,2]
[326445514,1714915865273,-2506.03410852,0.00033424,6]
[326445515,1714915865811,-2080.64328195,0.00029402,2]
[326445516,1714915865821,-247.85241209,0.0002989,2]
[326445517,1714915865830,-5856.07938099,0.00029999,2]
[326445518,1714915865841,-611.0,0.00030671,2]
[326445519,1714915865852,-808.0,0.00030671,2]
[326445520,1714915865862,-1786.0,0.00030671,2]
[326445521,1714915865871,-309.033,0.00030671,2]
[326445522,1714915865881,-437.0,0.00030671,2]
[326445523,1714915865890,-247.85241209,0.0003083,2]
[326445524,1714915865900,-247.85241209,0.00032866,2]
[326445525,1714915865909,-5349.69494004,0.00033424,6]
[326445526,1714915865919,-714.36,0.00033424,6]
[326445527,1714915865928,-1229.29,0.00033424,6]
[326445528,1714915865937,-1153.38,0.00033424,6]
[326445529,1714915865947,-1369.3,0.00033424,6]
[326445530,1714915865958,-9044.7,0.00033424,6]
[326445531,1714915865967,-1605.66,0.00033424,6]
[326445532,1714915865976,-500.0,0.00033424,6]
[326445533,1714915865986,-7530.19,0.00033424,6]
[326445534,1714915865999,-5886.12,0.00033424,6]
[326445535,1714915866010,-3203.3,0.00033424,6]
[326445536,1714915866025,-2071.85,0.00033424,6]
[326445537,1714915866034,-2470.94,0.00033424,6]
[326445538,1714915866043,-500.0,0.00033424,6]
[326445539,1714915866052,-500.0,0.00033424,6]
[326445540,1714915866061,-4705.29,0.00033424,6]
[326445541,1714915866069,-2726.24,0.00033424,6]
[326445542,1714915866079,-2276.25,0.00033424,6]
[326445543,1714915866088,-500.0,0.00033424,6]
[326445544,1714915866097,-8502.89,0.00033424,6]
[326445545,1714915866107,-500.0,0.00033424,6]
[326445546,1714915866116,-613.39,0.00033424,6]
[326445547,1714915866126,-4607.88,0.00033424,6]
[326445548,1714915866136,-838.85,0.00033424,6]
[326445549,1714915866145,-1527.86,0.00033424,6]
[326445550,1714915866154,-500.0,0.00033424,6]
[326445551,1714915866164,-8969.31,0.00033424,6]
[326445552,1714915866173,-1879.25,0.00033424,6]
[326445553,1714915866182,-500.0,0.00033424,6]
[326445554,1714915866192,-2607.17,0.00033424,6]
[326445555,1714915866201,-256.03395089,0.00033424,6]
[326445556,1714915866215,-5123.78,0.00033424,6]
[326445557,1714915866224,-2388.99,0.00033424,6]
[326445558,1714915866234,-903.73,0.00033424,6]
[326445559,1714915866243,-744.91,0.00033424,6]
[326445560,1714915866257,-5667.8,0.00033424,6]
[326445561,1714915866266,-2263.71,0.00033424,6]
[326445562,1714915866275,-5194.94,0.00033424,6]
[326445563,1714915866284,-2854.31099335,0.00033424,6]
[326445564,1714915866317,-1743.15900665,0.00033424,6]
[326445565,1714915866327,-696.37,0.00033424,6]
[326445566,1714915866336,-692.63,0.00033424,6]
[326445567,1714915866345,-977.21,0.00033424,6]
[326445568,1714915866355,-617.21,0.00033424,6]
[326445569,1714915866365,-1364.11,0.00033424,6]
[326445570,1714915866374,-500.0,0.00033424,6]
[326445571,1714915866384,-11629.41,0.00033424,6]
[326445572,1714915866393,-500.0,0.00033424,6]
[326445573,1714915866403,-1747.92,0.00033424,6]
[326445574,1714915866412,-1400.34,0.00033424,6]
[326445575,1714915866422,-3096.31,0.00033424,6]
[326445576,1714915866432,-500.0,0.00033424,6]
[326445577,1714915866441,-5969.29,0.00033424,6]
[326445578,1714915866450,-1015.77,0.00033424,6]
[326445579,1714915866460,-1117.96,0.00033424,6]
[326445580,1714915866470,-784.12,0.00033424,6]
[326445581,1714915866480,-500.0,0.00033424,6]
[326445582,1714915866489,-586.83,0.00033424,6]
[326445583,1714915866502,-2175.8,0.00033424,6]
[326445584,1714915866511,-500.0,0.00033424,6]
[326445585,1714915866520,-173.1383428,0.00033461,2]
[326445586,1714915866530,-246.0,0.0003347,2]
[326445587,1714915866540,-201.0,0.0003347,2]
[326445588,1714915866549,-938.54181325,0.00033475,2]
[326445589,1714915866558,-164.47,0.00033528,2]
[326445590,1714915866568,-10109.68660993,0.00033682,2]
[326445591,1714915866578,-3405.8,0.00033697,17]
[326445592,1714915866587,-981.79,0.00033698,7]
[326445593,1714915866597,-2040.13,0.00033698,7]
[326445594,1714915866606,-731.26,0.00033698,7]
[326445595,1714915866615,-1079.74,0.00033698,7]
[326445596,1714915866625,-1337.71,0.00033698,7]
[326445597,1714915866633,-513.12,0.00033698,7]
[326445598,1714915866642,-876.4,0.00033698,7]
[326445599,1714915866652,-3101.41,0.00033698,7]
[326445600,1714915866662,-594.18,0.00033698,7]
[326445601,1714915866671,-627.2,0.00033698,7]
[326445602,1714915866681,-989.83,0.00033698,7]
[326445603,1714915866695,-597.1,0.00033698,7]
[326445604,1714915866705,-500.0,0.00033698,7]
[326445605,1714915866714,-1689.15,0.00033698,7]
[326445606,1714915866723,-2343.43,0.00033698,7]
[326445607,1714915866734,-642.33,0.00033698,7]
[326445608,1714915866744,-2302.68,0.00033698,7]
[326445609,1714915866760,-500.0,0.00033698,7]
[326445610,1714915866770,-1805.51,0.00033698,7]
[326445611,1714915866779,-500.0,0.00033698,7]
[326445612,1714915866789,-500.0,0.00033698,7]
[326445613,1714915866798,-1353.31,0.00033698,7]
[326445614,1714915866807,-782.5,0.00033698,7]
[326445615,1714915866817,-3452.97,0.00033698,7]
[326445616,1714915866826,-500.0,0.00033698,7]
[326445617,1714915866835,-1480.66,0.00033698,7]
[326445618,1714915866848,-818.96,0.00033698,7]
[326445619,1714915866857,-2042.7,0.00033698,7]
[326445620,1714915866866,-500.0,0.00033698,7]
[326445621,1714915866876,-500.0,0.00033698,7]
[326445622,1714915866884,-1595.12,0.00033698,7]
[326445623,1714915866894,-1939.6,0.00033698,7]
[326445624,1714915866904,-500.0,0.00033698,7]
[326445625,1714915866914,-581.13,0.00033698,7]
[326445626,1714915866923,-3387.56,0.00033698,7]
[326445627,1714915866932,-880.76,0.00033698,7]
[326445628,1714915866942,-1944.07,0.00033698,7]
[326445629,1714915866951,-500.0,0.00033698,7]
[326445630,1714915866960,-806.39,0.00033698,7]
[326445631,1714915866970,-724.09,0.00033698,7]
[326445632,1714915866980,-2108.93,0.00033698,7]
[326445633,1714915866990,-1670.81,0.00033698,7]
[326445634,1714915867002,-536.82472188,0.00033698,7]
[326445635,1714915867012,-1039.87,0.00033698,7]
[326445636,1714915867021,-1638.75,0.00033698,7]
[326445637,1714915867030,-2155.45,0.00033698,7]
[326445638,1714915867040,-500.0,0.00033698,7]
[326445639,1714915867049,-772.66,0.00033698,7]
[326445640,1714915867058,-1025.2,0.00033698,7]
[326445641,1714915867068,-1717.6,0.00033698,7]
[326445642,1714915867077,-1651.01,0.00033698,7]
[326445643,1714915867086,-1939.75,0.00033698,7]
[326445644,1714915867095,-1227.88,0.00033698,7]
[326445645,1714915867104,-1682.89,0.00033698,7]
[326445646,1714915867113,-1205.56,0.00033698,7]
[326445647,1714915867123,-1747.37,0.00033698,7]
[326445648,1714915867131,-500.0,0.00033698,7]
[326445649,1714915867141,-2215.85,0.00033698,7]
[326445650,1714915867150,-649.64,0.00033698,7]
[326445651,1714915867160,-566.84,0.00033698,7]
[326445652,1714915867169,-500.0,0.00033698,7]
[326445653,1714915867179,-1356.01,0.00033698,7]
[326445654,1714915867188,-500.0,0.00033698,7]
[326445655,1714915867199,-1176.3,0.00033698,7]
[326445656,1714915867209,-1366.45,0.00033698,7]
[326445657,1714915867218,-684.39,0.00033698,7]
[326445658,1714915867227,-920.07,0.00033698,7]
[326445659,1714915867237,-879.33,0.00033698,7]
[326445660,1714915867249,-1031.58,0.00033698,7]
[326445661,1714915867258,-2063.31,0.00033698,7]
[326445662,1714915867267,-2434.24,0.00033698,7]
[326445663,1714915867275,-597.44,0.00033698,7]
[326445664,1714915867284,-713.31,0.00033698,7]
[326445665,1714915867293,-500.0,0.00033698,2]
[326445666,1714915867302,-600.45,0.00033698,7]
[326445667,1714915867311,-500.0,0.00033698,7]
[326445668,1714915867321,-952.7,0.00033698,7]
[326445669,1714915867331,-500.0,0.00033698,7]
[326445670,1714915867341,-802.54,0.00033698,7]
[326445671,1714915867350,-1024.94,0.00033698,7]
[326445672,1714915867360,-802.41,0.00033698,7]
[326445673,1714915867370,-687.56,0.00033698,7]
[326445674,1714915867380,-2386.25,0.00033698,7]
[326445675,1714915867390,-1223.23,0.00033698,7]
[326445676,1714915867400,-854.56,0.00033698,7]
[326445677,1714915867410,-500.0,0.00033698,7]
[326445678,1714915867420,-500.0,0.00033698,7]
[326445679,1714915867429,-500.0,0.00033698,7]
[326445680,1714915867439,-1748.83,0.00033698,7]
[326445681,1714915867449,-527.62,0.00033698,7]
[326445682,1714915867458,-803.14,0.00033698,7]
[326445683,1714915867467,-3740.0,0.00033698,7]
[326445684,1714915867477,-1004.08,0.00033698,7]
[326445685,1714915867486,-1502.83,0.00033698,7]
[326445686,1714915867496,-500.0,0.00033698,7]
[326445687,1714915867507,-500.0,0.00033698,7]
[326445688,1714915867516,-500.0,0.00033698,7]
[326445689,1714915867526,-1438.2,0.00033698,7]
[326445690,1714915867535,-500.0,0.00033698,7]
[326445691,1714915867544,-500.0,0.00033698,7]
[326445692,1714915867553,-500.0,0.00033698,7]
[326445693,1714915867563,-500.0,0.00033698,7]
[326445694,1714915867572,-1909.06,0.00033698,7]
[326445695,1714915867582,-913.79,0.00033698,7]
[326445696,1714915867591,-577.34,0.00033698,7]
[326445697,1714915867600,-500.0,0.00033698,7]
[326445698,1714915867610,-596.69,0.00033698,7]
[326445699,1714915867619,-660.81,0.00033698,7]
[326445700,1714915867629,-717.92,0.00033698,7]
[326445701,1714915867638,-605.11,0.00033698,7]
[326445702,1714915867647,-500.0,0.00033698,7]
[326445703,1714915867656,-500.0,0.00033698,7]
[326445704,1714915867665,-776.57,0.00033698,7]
[326445705,1714915867675,-986.28,0.00033698,7]
[326445706,1714915867684,-1164.45,0.00033698,7]
[326445707,1714915867694,-1851.14,0.00033698,7]
[326445708,1714915867703,-500.0,0.00033698,7]
[326445709,1714915867713,-1222.01,0.00033698,7]
[326445710,1714915867722,-500.0,0.00033698,7]
[326445711,1714915867732,-589.56,0.00033698,7]
[326445712,1714915867741,-801.86,0.00033698,7]
[326445713,1714915867754,-500.0,0.00033698,7]
[326445714,1714915867763,-1661.78,0.00033698,7]
[326445715,1714915867773,-628.8,0.00033698,7]
[326445716,1714915867782,-500.0,0.00033698,7]
[326445717,1714915867791,-2313.78,0.00033698,7]
[326445718,1714915867800,-1704.0,0.00033698,7]
[326445719,1714915867810,-2846.64,0.00033698,7]
[326445720,1714915867819,-500.0,0.00033698,7]
[326445721,1714915867831,-500.0,0.00033698,7]
[326445722,1714915867840,-1167.95,0.00033698,7]
[326445723,1714915867849,-1036.27,0.00033698,7]
[326445724,1714915867859,-1244.75,0.00033698,7]
[326445725,1714915867868,-624.27798562,0.00033698,7]
[326445726,1714915867878,-1662.54,0.00033698,7]
[326445727,1714915867887,-500.0,0.00033698,7]
[326445728,1714915867896,-1214.84,0.00033698,7]
[326445729,1714915867905,-1924.39,0.00033698,7]
[326445730,1714915867914,-500.0,0.00033698,7]
[326445731,1714915867924,-2178.68,0.00033698,7]
[326445732,1714915867933,-707.19,0.00033698,7]
[326445733,1714915867942,-538.64,0.00033698,7]
[326445734,1714915867952,-1834.53,0.00033698,7]
[326445735,1714915867961,-727.02,0.00033698,7]
[326445736,1714915867970,-500.0,0.00033698,7]
[326445737,1714915867979,-2359.18,0.00033698,7]
[326445738,1714915868186,-592.28,0.00033698,7]
[326445739,1714915868195,-728.13,0.00033698,7]
[326445740,1714915868210,-500.0,0.00033698,7]
[326445741,1714915868220,-830.03,0.00033698,7]
[326445742,1714915868229,-5000.0,0.00033698,7]
[326445743,1714915868239,-678.1,0.00033698,7]
[326445744,1714915868250,-500.0,0.00033698,7]
[326445745,1714915868259,-666.82,0.00033698,7]
[326445746,1714915868269,-850.81,0.00033698,7]
[326445747,1714915868281,-1351.18,0.00033698,7]
[326445748,1714915868290,-500.0,0.00033698,7]
[326445749,1714915868300,-500.0,0.00033698,7]
[326445750,1714915868309,-1570.77,0.00033698,7]
[326445751,1714915868319,-587.14,0.00033698,7]
[326445752,1714915868329,-1869.51,0.00033698,7]
[326445753,1714915868338,-1759.58,0.00033698,7]
[326445754,1714915868348,-2359.56,0.00033698,7]
[326445755,1714915868357,-844.39,0.00033698,7]
[326445756,1714915868367,-500.0,0.00033698,7]
[326445757,1714915868376,-1055.67,0.00033698,7]
[326445758,1714915868385,-513.49,0.00033698,7]
[326445759,1714915868394,-1478.45,0.00033698,7]
[326445760,1714915868404,-1000.0,0.00033698,7]
[326445761,1714915868413,-756.48,0.00033698,7]
[326445762,1714915868423,-500.0,0.00033698,7]
[326445763,1714915868433,-973.01,0.00033698,7]
[326445764,1714915868442,-687.56,0.00033698,7]
[326445765,1714915868451,-2401.96,0.00033698,7]
[326445766,1714915868461,-2109.99,0.00033698,7]
[326445767,1714915868470,-500.0,0.00033698,7]
[326445768,1714915868479,-531.18,0.00033698,7]
[326445769,1714915868489,-662.28,0.00033698,7]
[326445770,1714915868499,-1671.18,0.00033698,7]